{"text_format":"3","workbook":"xlsx","n_sheets":1,"sheets":["1"],"read":"whole","date_system":"1900"}

{"sheet":"1","index":0,"n_rows":40,"n_cols":10,"rows_kept":40,"merged":[[0,1,0,3]]}
["Школа","МАОУ \"Лицей-интернат №1\" г. Альметьевска Республики Татарстан",null,null,"Отд./корп",{"$nulls":3},"День","2023-10-11"]
[]
["Прием пищи","Раздел","№ рец.","Блюдо","Выход, г","Цена","Калорийность","Белки","Жиры","Углеводы"]
["Завтрак","гор.блюдо",null,"Запеканка творожная со сгущенкой",120,null,356,20,15,37]
[null,"гор.напиток",null,{"$f":"D32","v":"Чай с сахаром  с лимоном"},200,null,53,0,0,14]
[null,"хлеб",null,"Хлеб пшеничный",20,null,47,2,0,10]
[{"$nulls":3},"Хлеб сельский",20,null,46,1,0,10]
[{"$nulls":3},"Масло сливочное",10,null,66,1,8,0]
[{"$nulls":3},"Яйцо вареное","1шт",null,63,5,5,3]
[]
[]
["Обед","закуска",null,"Салат из св. капусты",60,null,56,0,4,5]
[null,"1 блюдо",null,"Лапша домашняя",250,null,157,6,10,8]
[null,"2 блюдо",null,"Плов из курицы",250,null,522,25,27,44]
[null,"гарнир",null,"Гречка отварная",180,null,332,23,23,7]
[null,"сладкое",null,"Компот из сухофруктов",200,null,53,0,0,14]
[null,"хлеб бел.",null,"Хлеб пшеничный",40,null,94,3,0,19]
[null,"хлеб черн.",null,{"$f":"$D$7","v":"Хлеб сельский"},40,null,92,2,0,20]
[]
[]
["Полдник",null,null,"Кекс",70,null,289,21,21,4]
[{"$nulls":3},"Йогурт",150,null,100,6,5,8]
{"$rows_empty":7}
["Ужин",null,null,"Рыба тушенная совощами",60,null,105,10,5,4]
[{"$nulls":3},"Картофель отварной с маслом",200,null,168,4,4,28]
[{"$nulls":3},"Чай с сахаром  с лимоном",200,null,{"$f":"G16","v":53},0,0,14]
[{"$nulls":3},{"$f":"D17","v":"Хлеб пшеничный"},40,null,{"$f":"G17","v":94},3,0,19]
[{"$nulls":3},{"$f":"D18","v":"Хлеб сельский"},40,null,92,2,0,20]
[]
[]
[]
[]
["Ужин 2",null,null,"Лепешка  сметанная",100,null,247,8,11,38]
[{"$nulls":3},"Кефир 2,5%",180,null,60,3,3,5]